fUSD/lending_fUSD_20250407
["ID","MTS","AMOUNT","RATE_DAILY","PERIOD"]
[357384432,1744030238265,-37043.0974337,0.000334,2]
[357384433,1744030238274,-193.82,0.00035561,2]
[357384434,1744030238284,-250.0,0.00036326,2]
[357384435,1744030238294,-350.0,0.00036326,12]
[357384436,1744030238304,-836.01986018,0.000372,103]
[357384437,1744030238313,-836.01986015,0.00038187,109]
[357384438,1744030238322,-370.22,0.00039873,2]
[357384439,1744030238332,-19999.99,0.00039873,2]
[357384440,1744030238341,-573.85,0.00039873,2]
[357384441,1744030238351,-2757.5,0.00039873,2]
[357384442,1744030238361,-299.99,0.00039873,120]
[357384443,1744030238370,-150.99,0.00039873,2]
[357384444,1744030238379,-622.77,0.00039873,15]
[357384445,1744030238389,-450.71,0.00041055,5]
[357384446,1744030238398,-300.0,0.00041055,5]
[357384447,1744030238408,-1244.85973986,0.00041055,2]
[357384448,1744030238417,-1066.48,0.00041341,2]
[357384449,1744030238427,-1195.28,0.00041862,2]
[357384450,1744030238436,-1000.0,0.00041902,2]
[357384452,1744030238445,-160.0,0.00042,120]
[357384453,1744030238455,-150.0,0.0004283,120]
[357384454,1744030238468,-610.0,0.00043259,120]
[357384455,1744030238477,-858.1454,0.00043276,2]
[357384456,1744030238487,-1450.3479,0.00043276,2]
[357384457,1744030238496,-41095.5341,0.00043276,2]
[357384458,1744030238506,-836.01986015,0.00043324,120]
[357384459,1744030238516,-6525.48048848,0.00043376,2]
[357384460,1744030238530,-2850.24728919,0.00043376,2]
[357384461,1744030238544,-713.90646237,0.00043376,2]
[357384462,1744030238557,-2427.32329347,0.00043376,2]
[357384463,1744030238571,-440.61319285,0.00043376,2]
[357384464,1744030238584,-658.08197241,0.00043376,2]
[357384465,1744030238597,-5122.78205877,0.00043376,2]
[357384466,1744030238618,-542.8967885,0.00043376,2]
[357384467,1744030238632,-412.02533707,0.00043376,2]
[357384468,1744030238643,-1489.47182941,0.00043376,2]
[357384469,1744030238654,-2817.51792355,0.00043376,2]
[357384470,1744030238676,-1357.36621302,0.00043376,2]
[357384482,1744030239927,-2072.68753438,0.00033127,2]
[357384483,1744030239939,-612.74,0.00033127,2]
[357384484,1744030239949,-1445.99999998,0.00033127,2]
[357384485,1744030240145,-103097.82513224,0.00033127,2]
[357384486,1744030240156,-12272.7726106,0.00043376,2]
[357384487,1744030240166,-1066.48,0.00043605,2]
[357384488,1744030240175,-250.94210447,0.00043637,2]
[357384489,1744030240185,-2864.17113716,0.000439,15]
[357384490,1744030240194,-457.34379458,0.00043999,31]
[357384491,1744030240204,-500.0,0.00043999,120]
[357384492,1744030240217,-500.0,0.00043999,120]
[357384493,1744030240226,-500.0,0.00043999,120]
[357384494,1744030240235,-500.0,0.00043999,120]
[357384495,1744030240244,-500.0,0.00043999,120]
[357384496,1744030240254,-500.0,0.00043999,120]
[357384497,1744030240263,-500.0,0.00043999,120]
[357384498,1744030240272,-500.0,0.00043999,120]
[357384499,1744030240281,-434.5199334,0.00043999,120]
[357384500,1744030240290,-160.0,0.00044,120]
[357384501,1744030240299,-2000.0,0.00044,30]
[357384502,1744030240308,-20717.23628751,0.00044,30]
[357384503,1744030240318,-23900.0,0.00044035,2]
[357384504,1744030240327,-150.0,0.00044199,120]
[357384505,1744030240336,-151.78,0.00044327,2]
[357384506,1744030240345,-1852.42,0.00044358,120]
[357384507,1744030240355,-200.0,0.000444,7]
[357384508,1744030240364,-150.0,0.0004442,2]
[357384509,1744030240373,-500.0,0.00044436,3]
[357384510,1744030240382,-200.0,0.00044482,2]
[357384511,1744030240391,-150.0,0.00044491,2]
[357384512,1744030240401,-2000.0,0.00044519,120]
[357384513,1744030240411,-2864.17113716,0.00044825,15]
[357384514,1744030240420,-12090.57934702,0.00044849,2]
[357384515,1744030240429,-4999.99,0.00045,16]
[357384516,1744030240439,-624.14,0.00045134,2]
[357384517,1744030240449,-1831.99,0.00045216,2]
[357384518,1744030240458,-745.93,0.0004522,2]
[357384519,1744030240471,-200.0,0.00045265,2]
[357384520,1744030240482,-150.0,0.00045569,120]
[357384521,1744030240492,-2864.17113716,0.00045751,15]
[357384522,1744030240502,-786.71,0.00045807,2]
[357384523,1744030240512,-182.19499901,0.00045819,28]
[357384524,1744030240521,-161.64,0.00045849,2]
[357384525,1744030240531,-1066.48,0.00045869,2]
[357384526,1744030240542,-702.91,0.00045909,120]
[357384527,1744030240552,-227.78,0.00045914,2]
[357384528,1744030240562,-1000.0,0.00045919,120]
[357384529,1744030240572,-749.79,0.00045923,2]
[357384530,1744030240582,-15366.9684099,0.00045936,2]
[357384531,1744030240592,-160.0,0.00046,120]
[357384532,1744030240601,-1294.47,0.00046359,2]
[357384533,1744030240611,-1294.47,0.00046372,2]
[357384534,1744030240620,-1294.47,0.00046384,2]
[357384535,1744030240629,-1294.47,0.00046396,2]
[357384536,1744030240639,-1294.47,0.00046408,2]
[357384537,1744030240649,-1294.47,0.0004642,2]
[357384538,1744030240659,-1294.47,0.00046433,2]
[357384540,1744030240668,-1294.47,0.00046445,2]
[357384542,1744030240677,-1294.47,0.00046457,2]
[357384544,1744030240687,-1294.47,0.00046469,2]
[357384546,1744030240696,-315.3407,0.0004648,2]
[357384548,1744030240711,-1294.47,0.00046481,2]
[357384550,1744030240721,-1294.47,0.00046494,2]
[357384552,1744030240731,-1500.0,0.00046496,120]
[357384553,1744030240742,-1294.47,0.00046506,2]
[357384554,1744030240752,-1294.47,0.00046518,2]
[357384555,1744030240763,-1294.47,0.0004653,2]
[357384556,1744030240773,-1294.47,0.00046542,2]
[357384557,1744030240783,-1294.47,0.00046554,2]
[357384558,1744030240793,-1294.47,0.00046567,2]
[357384559,1744030240804,-2961.6,0.00046575,5]
[357384560,1744030240815,-1294.47,0.00046579,2]
[357384561,1744030240825,-329.6,0.0004658,120]
[357384562,1744030240836,-200.98,0.0004658,77]
[357384563,1744030240846,-3803.192,0.0004658,77]
[357384564,1744030240857,-1294.47,0.00046591,2]
[357384565,1744030240867,-503.0990967,0.000466,10]
[357384566,1744030240877,-500.0,0.000466,10]
[357384567,1744030240887,-500.0,0.000466,10]
[357384568,1744030240897,-2864.17113716,0.00046676,15]
[357384569,1744030240906,-485.08,0.00046725,2]
[357384570,1744030240916,-1120.20301156,0.00046932,10]
[357384571,1744030240926,-1046.56679253,0.00046932,10]
[357384572,1744030240937,-150.0,0.00046939,120]
[357384573,1744030240947,-172.68,0.00046963,2]
[357384574,1744030240958,-2000.0,0.000471,2]
[357384575,1744030240977,-1000.0,0.0004714,2]
[357384576,1744030240988,-330.41,0.00047245,2]
[357384577,1744030241000,-517.55865145,0.00047257,120]
[357384578,1744030241011,-500.0,0.00047271,10]
[357384579,1744030241021,-509.51,0.00047275,120]
[357384580,1744030241031,-227.78,0.00047284,120]
[357384581,1744030241042,-624.14,0.00047391,2]
[357384582,1744030241055,-250.0,0.00047414,120]
[357384583,1744030241065,-2796.40507584,0.0004742,2]
[357384584,1744030241075,-1437.46315881,0.0004759,15]
[357384585,1744030241085,-13133.2968,0.0004759,2]
[357384586,1744030241096,-816.50000768,0.00047597,2]
[357384587,1744030241106,-12004.0494656,0.00047597,3]
[357384588,1744030241115,-2864.17113716,0.00047601,15]
[357384589,1744030241124,-1604.70170238,0.0004778,19]
[357384590,1744030241136,-12004.0494656,0.0004779,3]
[357384591,1744030241146,-20000.0,0.000478,30]
[357384592,1744030241155,-1518.6134,0.00047823,2]
[357384593,1744030241165,-1000.0,0.00047823,2]
[357384594,1744030241174,-1051.6146,0.00047823,2]
[357384595,1744030241184,-1776.0997,0.00047833,2]
[357384596,1744030241194,-4460.7533,0.00047833,2]
[357384597,1744030241204,-12004.0494656,0.0004787,4]
[357384598,1744030241217,-151.38,0.0004787,2]
[357384599,1744030241228,-500.01597978,0.00047873,10]
[357384600,1744030241237,-500.0,0.00047873,10]
[357384601,1744030241247,-500.0,0.00047873,10]
[357384602,1744030241257,-500.0,0.00047873,10]
[357384603,1744030241266,-502.35256817,0.00047873,10]
[357384604,1744030241276,-500.0,0.00047873,10]
[357384605,1744030241286,-8183.19540572,0.0004788,30]
[357384606,1744030241299,-2656.178083,0.0004788,30]
[357384607,1744030241309,-16720.571917,0.0004788,4]
[357384620,1744030245003,-300.05721966,0.0004788,4]
[357384621,1744030245015,-42999.61819134,0.0004788,4]
[357384622,1744030245024,-378.19727967,0.0004789,7]
[357384623,1744030245033,-200.0,0.0004789,7]
[357384624,1744030245043,-200.0,0.0004789,7]
[357384625,1744030245056,-200.0,0.000479,17]
[357384626,1744030245065,-5016.8048473,0.000479,2]
[357384627,1744030245075,-200.0,0.00047904,2]
[357384628,1744030245084,-7511.4344693,0.00047913,4]
[357384629,1744030245097,-2942.52561452,0.00047913,4]
[357384663,1744030245752,-29.62099869,0.00047913,4]
[357384667,1744030246022,-453.0,0.00047913,4]
[357384668,1744030246034,-251.70593403,0.00047913,4]
[357384669,1744030246114,-1710.83595363,0.00047913,4]
[357384670,1744030246126,-303.06999999,0.00047913,4]
[357384671,1744030246138,-683.8422522,0.00047913,4]
[357384672,1744030246153,-701.4404007,0.00047913,4]
[357384676,1744030270381,50000.0,0.00042867,30]
[357384677,1744030275294,50000.0,0.00042867,31]
[357384678,1744030281410,50000.0,0.00042867,32]
[357384679,1744030292777,50000.0,0.00042867,33]
[357384680,1744030303948,250.0,0.00019,2]
[357384681,1744030305064,300.0,0.00021,2]
[357384682,1744030306138,142.20136853,0.00023,2]
[357384683,1744030306164,207.79863147,0.00023,2]
[357384684,1744030307522,238.2245279,0.00025,2]
[357384685,1744030307563,161.7754721,0.00025,2]
[357384686,1744030360248,1053.08806999,0.000329,30]
[357384687,1744030477718,1298.45468491,0.00033,120]
[357384688,1744030514356,500.0,0.00033,120]
[357384689,1744030628382,781.251478,7.945e-05,2]
[357384690,1744030809934,1205.39,0.00042852,30]
[357384691,1744030997637,198.5297873,0.00042852,120]
[357384692,1744030999184,503.70196728,0.00042852,120]
[357384693,1744031021184,650.3552433,0.00042852,120]
[357384694,1744031038207,503.70196728,0.00042852,120]
[357384696,1744031250219,-157.72,0.00026849,2]
[357384697,1744031250243,-222.61049067,0.00027,2]
[357384698,1744031329414,496.29803271,0.00042852,120]
[357384699,1744031348091,-227.38950933,0.00027,2]
[357384700,1744031348118,-423.0211115,0.0002898,2]
[357384701,1744031348140,-500.0,0.00029,2]
[357384702,1744031351152,-250.0,0.000297,2]
[357384703,1744031351199,-350.0,0.000297,12]
[357384704,1744031351234,-217.70214511,0.000328,2]
[357384705,1744031351268,-169.00203654,0.00032927,2]
[357384706,1744031351301,-303.7396,0.00033027,2]
[357384707,1744031351337,-157.72,0.00034716,2]
[357384708,1744031359106,-250.0,0.0003589,2]
[357384709,1744031359130,-193.33878,0.00036644,2]
[357384710,1744031377639,2000.0,0.00042852,30]
[357384717,1744031432222,-399.0,0.00036802,2]
[357384719,1744031432232,-7942.0,0.00036803,2]
[357384721,1744031432247,-302.0,0.00036803,2]
[357384723,1744031432261,-443.42,0.00036803,2]
[357384726,1744031432276,-1043.81180349,0.00036803,2]
[357384729,1744031432292,-460.1286048,0.00036803,2]
[357384746,1744031434152,527.19295564,0.0003221,10]
[357384748,1744031438086,-574.9999999,0.00036803,2]
[357384749,1744031438101,-387.275,0.00036803,2]
[357384750,1744031438156,-1687.9882752,0.00036803,2]
[357384752,1744031438169,-1716.84922468,0.00036803,2]
[357384754,1744031438184,-444.82783315,0.00036803,2]
[357384759,1744031438221,-812.40915532,0.00036803,2]
[357384762,1744031438236,-770.40515333,0.00036803,2]
[357384765,1744031438259,-3825.69059615,0.00036803,2]
[357384934,1744031440083,-42.25894356,0.00036803,2]
[357384938,1744031440113,-1514.45024793,0.00036803,2]
[357384957,1744031440284,-654.70603551,0.00036803,2]
[357384959,1744031440295,-580.74285004,0.00036803,2]
[357384961,1744031440306,-721.08500002,0.00036803,2]
[357385016,1744031444471,-1394.67244347,0.00036803,2]
[357385020,1744031444501,-41333.04000002,0.00036803,2]
[357385025,1744031444566,-772.6422,0.00036803,2]
[357385028,1744031444637,-384.12378267,0.00036803,2]
[357385040,1744031445962,-833.8,0.00036803,2]
[357385041,1744031445972,-534.47004417,0.00036803,2]
[357385042,1744031446020,-512.68568981,0.00036803,2]
[357385043,1744031446031,-1051.95194782,0.00036803,2]
[357385044,1744031446207,-159.71508633,0.00036803,2]
[357385045,1744031446256,-554.11287196,0.00036803,2]
[357385049,1744031520655,3426.57616836,0.00036703,2]
[357385050,1744031600260,2452.0,0.0003,90]
[357385051,1744031645474,367.84397124,0.00042852,30]
[357385052,1744031717370,150.0,0.00042852,30]
[357385053,1744031719338,2000.0,0.00042852,60]
[357385057,1744032076393,296.81,0.00013699,2]
[357385058,1744032112517,250.0,0.00019,2]
[357385059,1744032113597,300.0,0.00021,2]
[357385060,1744032114725,350.0,0.00023,2]
[357385061,1744032115797,400.0,0.00025,2]
[357385062,1744032133033,2533.40579426,0.00025,14]
[357385063,1744032149096,200.0,0.00042828,30]
[357385064,1744032150071,207.4,0.00042828,30]
[357385065,1744032150977,215.0738,0.00042828,30]
[357385066,1744032151840,223.0315306,0.00042828,30]
[357385068,1744032152840,231.28369723,0.00042828,30]
[357385069,1744032154385,239.84119403,0.00042828,30]
[357385070,1744032155441,248.71531821,0.00042828,30]
[357385071,1744032156103,257.91778498,0.00042828,30]
[357385072,1744032157005,267.46074303,0.00042828,30]
[357385073,1744032157884,277.35679052,0.00042828,30]
[357385074,1744032159004,287.61899177,0.00042828,30]
[357385075,1744032160332,298.26089446,0.00042828,30]
[357385076,1744032160820,309.29654756,0.00042828,30]
[357385077,1744032161507,320.74051982,0.00042828,30]
[357385078,1744032162733,332.60791905,0.00042828,30]
[357385079,1744032163404,344.91441206,0.00042828,30]
[357385080,1744032164350,357.6762453,0.00042828,30]
[357385081,1744032165177,370.91026638,0.00042828,30]
[357385082,1744032165866,384.63394623,0.00042828,30]
[357385083,1744032167560,384.63394623,0.00042828,30]
[357385084,1744032176830,412.36,0.00042828,30]
[357385085,1744032309501,3943.08557413,0.0002,2]
[357385086,1744032309528,4733.47887817,0.0002,2]
[357385087,1744032309555,4733.47887817,0.0002,2]
[357385088,1744032309581,4733.47887817,0.0002,2]
[357385089,1744032314750,570838.806689,0.00042828,30]
[357385090,1744032328092,136652.20696536,0.00042828,30]
[357385091,1744032328895,349.60179007,0.00011,2]
[357385092,1744032350123,-717.41774196,0.0002,2]
[357385093,1744032367563,1768.00518634,8e-05,2]
[357385094,1744032435105,-150.0,0.00019949,2]
[357385095,1744032435126,-1154.15070237,0.0001995,2]
[357385096,1744032438077,-546.37536664,0.0001995,2]
[357385097,1744032442089,-12760.44614709,0.0001995,2]
[357385098,1744032446090,-609.54005058,0.0001995,2]
[357385099,1744032448255,200.0,0.00042828,30]
[357385100,1744032449136,207.4,0.00042828,30]
[357385101,1744032450060,215.0738,0.00042828,30]
[357385102,1744032450107,-179.71730485,0.0001995,2]
[357385103,1744032451122,223.0315306,0.00042828,30]
[357385104,1744032452018,231.28369723,0.00042828,30]
[357385105,1744032452719,239.84119403,0.00042828,30]
[357385106,1744032453400,248.71531821,0.00042828,30]
[357385107,1744032454372,257.91778498,0.00042828,30]
[357385108,1744032454996,267.46074303,0.00042828,30]
[357385109,1744032456233,277.35679052,0.00042828,30]
[357385110,1744032456935,287.61899177,0.00042828,30]
[357385111,1744032457865,298.26089446,0.00042828,30]
[357385112,1744032458846,309.29654756,0.00042828,30]
[357385113,1744032459789,320.74051982,0.00042828,30]
[357385114,1744032460664,332.60791905,0.00042828,30]
[357385115,1744032463424,344.91441206,0.00042828,30]
[357385116,1744032465762,357.6762453,0.00042828,30]
[357385117,1744032465971,-169.00203654,0.00019899,2]
[357385118,1744032466006,-149063.60017818,0.0001995,2]
[357385119,1744032466048,-184.97761041,0.00019999,2]
[357385120,1744032466087,-161727.42017487,0.0002,2]
[357385121,1744032466665,370.91026638,0.00042828,30]
[357385122,1744032467344,384.63394623,0.00042828,30]
[357385123,1744032468963,384.63394623,0.00042828,30]
[357385124,1744032483590,30043.9537677,0.00015,2]
[357385126,1744032487249,381.79403915,0.00042828,120]
[357385127,1744032488983,182.67179534,0.00042828,60]
[357385133,1744032492304,886.80251625,0.00042828,30]
[357385138,1744032519165,7499.999999,0.00042828,30]
[357385139,1744032524730,258.48963289,0.000107,2]
[357385140,1744032525267,-151.10422398,0.00019,2]
[357385142,1744032528573,640.81154111,0.0002,90]
[357385143,1744032529241,1213.76955791,0.00010136,2]
[357385146,1744032530945,1500.33748083,0.0003,120]
[357385149,1744032544924,-273.66285855,0.00019,2]
[357385150,1744032548093,-326.33714145,0.00019,2]
[357385151,1744032548117,-134925.16164336,0.0002,2]
[357385152,1744032551059,-500.0,0.00019973,2]
[357385153,1744032551083,-13945.10254442,0.0002,2]
[357385154,1744032551107,-251.1820167,0.00021762,2]
[357385155,1744032551129,-2118.54675441,0.000239,2]
[357385156,1744032551151,-5489.78404995,0.00024,5]
[357385157,1744032551174,-2375.45603746,0.0002488,7]
[357385158,1744032551200,-182.19499899,0.000249,2]
[357385159,1744032551222,-1797.13387432,0.000249,2]
[357385160,1744032551242,-2092.05336375,0.00025,14]
[357385163,1744032553910,-5464.75352306,0.00025,14]
[357385164,1744032553931,-322.64617464,0.00025,2]
[357385165,1744032553952,-401.95416754,0.00025452,2]
[357385166,1744032553976,-263.67,0.00026849,2]
[357385167,1744032554000,-450.0,0.00027,2]
[357385168,1744032554022,-1164.39954076,0.00027017,2]
[357385169,1744032554886,263.152689,0.00019973,2]
[357385172,1744032559300,-954.14721361,0.00027017,2]
[357385173,1744032559321,-150.99,0.00027397,2]
[357385174,1744032559344,-299.99,0.00027397,12]
[357385175,1744032559367,-199.92987513,0.00027906,2]
[357385176,1744032572123,-1597.20399913,0.00027906,2]
[357385177,1744032572144,-2146.30981176,0.0003,2]
[357385178,1744032572166,-2118.54675437,0.00030134,2]
[357385179,1744032572188,-1797.13387426,0.00030912,2]
[357385180,1744032572209,-574.42,0.00030912,2]
[357385181,1744032572230,-1000.0,0.00031627,2]
[357385182,1744032572252,-263.67,0.00032646,2]
[357385183,1744032572275,-2118.54675437,0.00033251,2]
[357385184,1744032572299,-510.0,0.0003326,2]
[357385185,1744032572321,-3945.95,0.0003326,30]
[357385186,1744032572342,-6252.96,0.0003326,2]
[357385190,1744032626080,200.0,0.0003326,2]
[357385210,1744032632085,-1797.13387426,0.00033918,2]
[357385211,1744032632094,-996.73,0.00034607,2]
[357385212,1744032632105,-2000.0,0.00034815,2]
[357385213,1744032632115,-427.54,0.00034962,2]
[357385214,1744032632125,-624.59378946,0.00035,2]
[357385215,1744032632135,-168.02,0.00035,2]
[357385216,1744032632147,-172.68,0.00035062,2]
[357385217,1744032632157,-212.0,0.0003593,2]
[357385218,1744032632167,-8982.60233628,0.0003593,7]
[357385299,1744032638275,-49504.17820298,0.0003593,7]
[357385300,1744032638284,-643.14038601,0.00036,2]
[357385301,1744032638293,-300.0,0.00036,2]
[357385302,1744032638303,-583.42,0.000361,2]
[357385303,1744032638312,-2118.54675437,0.00036368,2]
[357385304,1744032638322,-500.0,0.000364,2]
[357385305,1744032638331,-3411.69955865,0.000365,120]
[357385306,1744032638341,-1000.0,0.00036525,2]
[357385307,1744032638350,-182.19499899,0.00036697,2]
[357385308,1744032638359,-500.0,0.00036773,5]
[357385309,1744032638369,-500.0,0.00036773,5]
[357385310,1744032638379,-500.01597978,0.00036773,5]
[357385311,1744032638388,-505.19568927,0.00036773,2]
[357385312,1744032638398,-37551.81218482,0.00036787,3]
[357385313,1744032638417,-473.48704945,0.00036787,3]
[357385314,1744032638480,-619.24477862,0.00036787,3]
[357385349,1744032640182,-7509.9933811,0.00036787,3]
[357385351,1744032640236,-57.20999037,0.00036787,3]
[357385352,1744032640250,-1499.99999999,0.00036787,3]
[357385376,1744032643665,-86.45124277,0.00035,2]
[357385377,1744032643676,-63.54875723,0.00035,2]
[357385378,1744032643686,-819.93715123,0.00036787,3]
[357385380,1744032643734,-37472.55379247,0.00036787,3]
[357385381,1744032643745,-1514.3,0.00036787,3]
[357385382,1744032643777,-15245.20206156,0.00036787,3]
[357385392,1744032646180,-1417.82734962,0.00036787,3]
[357385464,1744032749915,200.0,0.00042828,30]
[357385465,1744032750832,207.4,0.00042828,30]
[357385466,1744032751483,215.0738,0.00042828,30]
[357385467,1744032753163,223.0315306,0.00042828,30]
[357385468,1744032754053,231.28369723,0.00042828,30]
[357385469,1744032754762,239.84119403,0.00042828,30]
[357385470,1744032755475,248.71531821,0.00042828,30]
[357385471,1744032756830,257.91778498,0.00042828,30]
[357385472,1744032757303,267.46074303,0.00042828,30]
[357385473,1744032757985,277.35679052,0.00042828,30]
[357385474,1744032758870,287.61899177,0.00042828,30]
[357385475,1744032759833,298.26089446,0.00042828,30]
[357385476,1744032760509,309.29654756,0.00042828,30]
[357385477,1744032761397,320.74051982,0.00042828,30]
[357385478,1744032762297,332.60791905,0.00042828,30]
[357385479,1744032763002,344.91441206,0.00042828,30]
[357385480,1744032763666,357.6762453,0.00042828,30]
[357385481,1744032764530,370.91026638,0.00042828,30]
[357385482,1744032765080,384.63394623,0.00042828,30]
[357385483,1744032765817,384.63394623,0.00042828,30]
[357385485,1744033048488,200.0,0.00042826,30]
[357385486,1744033049407,207.4,0.00042826,30]
[357385487,1744033050489,215.0738,0.00042826,30]
[357385488,1744033051396,223.0315306,0.00042826,30]
[357385489,1744033052460,231.28369723,0.00042826,30]
[357385490,1744033053050,239.84119403,0.00042826,30]
[357385491,1744033053755,248.71531821,0.00042826,30]
[357385492,1744033054711,257.91778498,0.00042826,30]
[357385493,1744033055904,267.46074303,0.00042826,30]
[357385494,1744033056587,277.35679052,0.00042826,30]
[357385495,1744033057538,287.61899177,0.00042826,30]
[357385496,1744033058483,298.26089446,0.00042826,30]
[357385497,1744033058974,309.29654756,0.00042826,30]
[357385498,1744033059644,320.74051982,0.00042826,30]
[357385499,1744033060581,332.60791905,0.00042826,30]
[357385500,1744033061512,344.91441206,0.00042826,30]
[357385501,1744033062177,357.6762453,0.00042826,30]
[357385502,1744033063451,370.91026638,0.00042826,30]
[357385503,1744033064762,384.63394623,0.00042826,30]
[357385504,1744033065463,384.63394623,0.00042826,30]
[357385505,1744033216922,150.0,0.00042833,30]
[357385506,1744033218260,2997.0,0.00042833,30]
[357385507,1744033239685,150.0,0.00027,120]
[357385508,1744033241836,150.0,0.000323,120]
[357385509,1744033347362,-173.81,0.00026849,2]
[357385510,1744033347389,-169.48,0.00028948,2]
[357385511,1744033347418,-1655.154201,0.0003534,2]
[357385512,1744033347444,-1635.37762429,0.00035418,2]
[357385513,1744033347471,-1635.37762428,0.00035489,2]
[357385514,1744033347499,-500.0,0.00035518,3]
[357385515,1744033347527,-499.31,0.00035589,2]
[357385516,1744033347554,-200.0,0.00035624,2]
[357385517,1744033347581,-1056.35,0.00035657,2]
[357385518,1744033347607,-180.29,0.00035862,2]
[357385519,1744033347633,-160.86,0.00035896,2]
[357385520,1744033347662,-180.29,0.00035922,2]
[357385521,1744033347689,-200.0,0.00035964,7]
[357385522,1744033347716,-180.29,0.00035982,2]
[357385523,1744033347747,-180.29,0.00036042,2]
[357385524,1744033347776,-2958.9212,0.00036135,2]
[357385525,1744033347802,-3158.95,0.00036235,2]
[357385526,1744033347830,-150.99,0.00036235,30]
[357385527,1744033347859,-329.6,0.00036344,120]
[357385528,1744033347887,-210.23,0.00036355,2]
[357385529,1744033347915,-250.0,0.00036429,120]
[357385530,1744033347942,-250.0,0.00036525,2]
[357385531,1744033347970,-13747.03,0.00036525,2]
[357385532,1744033347997,-318.4567,0.00036693,30]
[357385533,1744033348024,-1443.811,0.00036693,2]
[357385534,1744033348053,-1212.62053301,0.00036693,2]
[357385535,1744033348082,-173.40853228,0.00036697,2]
[357385536,1744033348114,-556.0,0.00036772,2]
[357385537,1744033348141,-240.911,0.00036773,46]
[357385538,1744033348173,-5413.577,0.00036773,46]
[357385539,1744033348202,-15000.0,0.00036781,2]
[357385540,1744033348230,-14840.03494509,0.00036783,2]
[357385541,1744033348266,-150.3,0.00036784,2]
[357385542,1744033348297,-150.0,0.00036787,3]
[357385543,1744033348326,-320.14065621,0.00036792,15]
[357385544,1744033348358,-191.41173109,0.00036792,15]
[357385545,1744033348391,-173.02777052,0.00036792,15]
[357385546,1744033348435,-88084.1146666,0.00036793,2]
[357385547,1744033348468,-74214.1774042,0.00036793,2]
[357385548,1744033348500,-1603.1944476,0.00036793,2]
[357385549,1744033348532,-85210.4498549,0.00036793,2]
[357385550,1744033348562,-15098.3780395,0.00036793,2]
[357385551,1744033348592,-151.0,0.00036797,7]
[357385552,1744033348621,-151.0,0.00036797,7]
[357385553,1744033348650,-151.0,0.00036797,7]
[357385554,1744033348685,-151.0,0.00036797,7]
[357385555,1744033348713,-151.0,0.00036797,7]
[357385556,1744033348741,-470.21677052,0.00036818,30]
[357385557,1744033348770,-5045.3840341,0.00036821,2]
[357385558,1744033348798,-996.73,0.00036871,2]
[357385559,1744033348827,-300.0,0.000369,13]
[357385560,1744033348855,-500.0,0.00036973,5]
[357385561,1744033348884,-264.92067383,0.00036973,5]
[357385562,1744033348918,-500.0,0.00036973,5]
[357385563,1744033348949,-272.458055,0.0003699,7]
[357385564,1744033348982,-151.0,0.0003699,7]
[357385565,1744033349010,-151.0,0.0003699,7]
[357385566,1744033349038,-151.0,0.0003699,7]
[357385567,1744033349065,-151.0,0.0003699,7]
[357385568,1744033349094,-151.0,0.0003699,7]
[357385569,1744033349125,-7378.619414,0.0003699,7]
[357385570,1744033349157,-7378.619414,0.0003699,7]
[357385571,1744033349191,-387.894996,0.0003699,7]
[357385572,1744033349220,-387.894996,0.0003699,7]
[357385573,1744033349247,-372.330521,0.0003699,7]
[357385574,1744033349275,-372.330521,0.0003699,7]
[357385575,1744033349303,-356.57832,0.0003699,7]